Workbook

Sheet Sheet1
A1: Annexure A - Cost Benefit and Market Research
A3: GIJIMA | I3: Colliery Training College (Pty) Ltd | Q3: PowerPro Technologies and Training
A4: Description | B4: Number of delegates | D4: Duration | E4: UOM | F4: Rate | G4: Subtotal | I4: Description | J4: Number of delegates | L4: Duration | M4: UOM | N4: Rate | O4: Subtotal | Q4: Description | R4: Number of delegates | T4: Duration | U4: UOM | V4: Rate | W4: Subtotal
A5: Electrical Trade Training (All Phases) | B5: 20 | D5: 6 | E5: Mnths | F5: R12,120.00 | G5: =F5*D5*B5 -> R1,454,400.00 | I5: Basic Training | J5: 20 | L5: 80 | M5: Days | N5: R30,790.21 | O5: =N5*J5 -> R615,804.20 | Q5: Electrical Trade Year 1 | R5: 20 | T5: 50 | U5: Days | V5: =550000/50/20 -> R550.00 | W5: =V5*T5*R5 -> R550,000.00
A6: Electrical Trade Test Prep | B6: 20 | D6: 6 | E6: Weeks | F6: R3,150.00 | G6: =F6*D6*B6 -> R378,000.00 | I6: Advanced Training | J6: 20 | N6: R32,945.52 | O6: =N6*J6 -> R658,910.40 | Q6: Electrical Trade Year 2 | R6: 20 | T6: 45 | U6: Days | V6: =540000/45/20 -> R600.00 | W6: =V6*T6*R6 -> R540,000.00
A7: Electrical Trade Test Prep | B7: 20 | D7: 2 | E7: Days | F7: R1,200.00 | G7: =F7*D7*B7 -> R48,000.00 | I7: Final Training | J7: 20 | L7: 60 | M7: Days | N7: =740784/20 -> R37,039.20 | O7: R740,784.00 | Q7: Electrical Trade Year 3 | R7: 20 | T7: 80 | U7: Days | V7: =650000/80/20 -> R406.25 | W7: =V7*T7*R7 -> R650,000.00
Q8: Electrical Trade Prep | R8: 20 | T8: 40 | U8: Days | V8: =520000/20/40 -> R650.00 | W8: =V8*T8*R8 -> R520,000.00
Q9: Electrical trade test | R9: 20 | T9: 2 | U9: Days | V9: =50000/2/20 -> R1,250.00 | W9: =V9*T9*R9 -> R50,000.00
G11: =SUM(G5:G10) -> R1,880,400.00 | O11: =SUM(O5:O8) -> R2,015,498.60 | W11: =SUM(W5:W10) -> R2,310,000.00
G13: =AVERAGE(G11,O11,W11) -> R2,068,632.87

Sheet Sheet2
A1: Description | B1: Number of delegates | D1: Duration | E1: UOM | F1: Rate | G1: Subtotal
A2: Trade Training Year 1 | B2: 60 | D2: 50 | E2: Days | G2: =F2*D2*B2 -> 0
A3: Trade Training Year 2 | B3: 60 | D3: 45 | E3: Days | G3: 0
A4: Trade Training Year 3 | B4: 60 | D4: 80 | E4: Days | G4: 0
A5: Skills Gap Training | B5: 20 | D5: 30 | E5: Days | G5: =F5*D5*B5 -> 0
A6: Trade Test Prep | B6: 80 | D6: 40 | E6: Days | G6: 0
A7: Trade Test | B7: =B6 -> 80 | D7: 2 | E7: Days | G7: 0
A8: ARPL Assessment | B8: 20 | D8: 2 | E8: Days | G8: =F8*D8*B8 -> 0
A9: ARPL POE | B9: 20 | D9: 1 | E9: Days | G9: =F9*D9*B9 -> 0
A10: Supply of Toolboxes | B10: 80 | D10: 1 | E10: Set | G10: =D10*F10*B10 -> 0
A11: Accommodation | B11: 80 | D11: =SUM(D2:D10) -> 251 | E11: Days | G11: 0
A12: Meals | B12: 80 | D12: 217 | E12: Days | G12: 0
A13: Transport | B13: 80 | D13: 217 | E13: Days | G13: 0
G15: =SUM(G2:G14) -> 0
